[Event "Titled Tuesday Blitz March 28 Late 2023"]
[White "Kozin, Yuri"]
[Black "Adel, Sara"]
[WhiteFideId "4129920"]
[BlackFideId "10616764"]
[WhiteElo "2424"]
[BlackElo "1982"]
[Result "1-0"]
[Round "06"]
[TimeControl "180+2"]
[Date "2023.03.28"]
[WhiteClock "0:00:10"]
[BlackClock "0:00:20"]

1. e4 {[%clk 0:02:56]}  c6 {[%clk 0:02:59]} 2. d4 {[%clk 0:02:56]}  d5 {[%clk 0:03:00]} 3. exd5 {[%clk 0:02:57]}  cxd5 {[%clk 0:03:00]} 4. c4 {[%clk 0:02:58]}  Nc6 {[%clk 0:03:00]} 5. cxd5 {[%clk 0:02:58]}  Qxd5 {[%clk 0:03:00]} 6. Nf3 {[%clk 0:02:59]}  Bg4 {[%clk 0:02:59]} 7. Nc3 {[%clk 0:02:59]}  Qh5 {[%clk 0:02:59]} 8. d5 {[%clk 0:02:59]}  Bxf3 {[%clk 0:02:52]} 9. gxf3 {[%clk 0:02:56]}  Ne5 {[%clk 0:02:38]} 10. Bb5+ {[%clk 0:02:55]}  Kd8 {[%clk 0:02:38]} 11. Be2 {[%clk 0:02:53]}  Qh3 {[%clk 0:02:29]} 12. Bf4 {[%clk 0:02:44]}  Qg2 {[%clk 0:02:10]} 13. Rf1 {[%clk 0:02:41]}  Ng6 {[%clk 0:02:08]} 14. Bg3 {[%clk 0:01:54]}  f5 {[%clk 0:02:08]} 15. Qa4 {[%clk 0:01:37]}  Nf6 {[%clk 0:01:48]} 16. O-O-O {[%clk 0:01:33]}  f4 {[%clk 0:01:48]} 17. Bxf4 {[%clk 0:01:27]}  Nxf4 {[%clk 0:01:47]} 18. Qxf4 {[%clk 0:01:27]}  g5 {[%clk 0:01:47]} 19. Qe5 {[%clk 0:01:21]}  g4 {[%clk 0:01:45]} 20. d6 {[%clk 0:01:18]}  Ke8 {[%clk 0:01:09]} 21. Bb5+ {[%clk 0:00:56]}  Kf7 {[%clk 0:01:07]} 22. Bc4+ {[%clk 0:00:55]}  Kg6 {[%clk 0:01:01]} 23. dxe7 {[%clk 0:00:48]}  Bh6+ {[%clk 0:01:00]} 24. Kb1 {[%clk 0:00:48]}  Qxf3 {[%clk 0:00:57]} 25. Bd3+ {[%clk 0:00:34]}  Kf7 {[%clk 0:00:53]} 26. Ne4 {[%clk 0:00:25]}  Qf4 {[%clk 0:00:19]} 27. Nd6+ {[%clk 0:00:20]}  Kg7 {[%clk 0:00:18]} 28. Nf5+ {[%clk 0:00:16]}  Kf7 {[%clk 0:00:17]} 29. Nxh6+ {[%clk 0:00:12]}  Qxh6 {[%clk 0:00:18]} 30. Bc4+ {[%clk 0:00:12]}  Kg6 {[%clk 0:00:18]} 31. Rd6 {[%clk 0:00:09]}  Rhe8 {[%clk 0:00:19]} 32. Rxf6+ {[%clk 0:00:09]}  Kg7 {[%clk 0:00:19]} 33. Rxh6+ {[%clk 0:00:09]}  Kxh6 {[%clk 0:00:20]} 34. Qf6+ {[%clk 0:00:09]}  Kh5 {[%clk 0:00:20]} 35. Bf7# {[%clk 0:00:10]} 1-0


[Site "https://www.chess.com"]

[Event "Titled Tuesday Blitz March 28 Late 2023"]
[White "Torrente, Alejandro Josue"]
[Black "Kornyukov, Alexey"]
[WhiteFideId "4437969"]
[BlackFideId "4150457"]
[WhiteElo "2025"]
[BlackElo "2352"]
[Result "1-0"]
[Round "06"]
[TimeControl "180+2"]
[Date "2023.03.28"]
[WhiteClock "0:01:35"]
[BlackClock "0:00:03"]

1. e4 {[%clk 0:03:00]}  c5 {[%clk 0:02:55]} 2. Nf3 {[%clk 0:03:01]}  Nc6 {[%clk 0:02:55]} 3. Bb5 {[%clk 0:03:01]}  e6 {[%clk 0:02:54]} 4. O-O {[%clk 0:03:00]}  Nge7 {[%clk 0:02:53]} 5. Re1 {[%clk 0:03:01]}  a6 {[%clk 0:02:52]} 6. Bf1 {[%clk 0:03:01]}  b5 {[%clk 0:02:28]} 7. d3 {[%clk 0:02:53]}  Bb7 {[%clk 0:02:21]} 8. a4 {[%clk 0:02:53]}  Ng6 {[%clk 0:02:20]} 9. c3 {[%clk 0:02:53]}  Be7 {[%clk 0:02:19]} 10. d4 {[%clk 0:02:53]}  cxd4 {[%clk 0:02:08]} 11. cxd4 {[%clk 0:02:54]}  b4 {[%clk 0:02:07]} 12. d5 {[%clk 0:02:54]}  Nce5 {[%clk 0:02:03]} 13. Nxe5 {[%clk 0:02:50]}  Nxe5 {[%clk 0:02:03]} 14. d6 {[%clk 0:02:50]}  Bf8 {[%clk 0:01:26]} 15. f4 {[%clk 0:02:48]}  Ng6 {[%clk 0:01:21]} 16. a5 {[%clk 0:02:40]}  Rc8 {[%clk 0:01:05]} 17. Be3 {[%clk 0:02:39]}  Bxe4 {[%clk 0:00:46]} 18. Bb6 {[%clk 0:02:38]}  Qf6 {[%clk 0:00:45]} 19. Rxe4 {[%clk 0:02:34]}  Qxb2 {[%clk 0:00:45]} 20. Nd2 {[%clk 0:02:34]}  f5 {[%clk 0:00:29]} 21. Rc4 {[%clk 0:02:29]}  Ra8 {[%clk 0:00:14]} 22. Rb1 {[%clk 0:02:24]}  Qa3 {[%clk 0:00:15]} 23. Rb3 {[%clk 0:02:22]}  Qa4 {[%clk 0:00:11]} 24. Rcxb4 {[%clk 0:02:21]}  Qc6 {[%clk 0:00:11]} 25. Rc4 {[%clk 0:02:21]}  Qd5 {[%clk 0:00:10]} 26. Rd3 {[%clk 0:02:13]}  Qb5 {[%clk 0:00:10]} 27. Qb3 {[%clk 0:01:44]}  Qxb3 {[%clk 0:00:09]} 28. Nxb3 {[%clk 0:01:45]}  Kf7 {[%clk 0:00:07]} 29. g3 {[%clk 0:01:45]}  e5 {[%clk 0:00:07]} 30. Bg2 {[%clk 0:01:42]}  e4 {[%clk 0:00:07]} 31. Rd5 {[%clk 0:01:42]}  Ke6 {[%clk 0:00:07]} 32. Rcc5 {[%clk 0:01:39]}  h5 {[%clk 0:00:03]} 33. Nd4+ {[%clk 0:01:40]}  Kf7 {[%clk 0:00:03]} 34. Rxf5+ {[%clk 0:01:38]}  Kg8 {[%clk 0:00:03]} 35. Bxe4 {[%clk 0:01:37]}  Re8 {[%clk 0:00:03]} 36. Bd5+ {[%clk 0:01:34]}  Kh7 {[%clk 0:00:03]} 37. Rxh5# {[%clk 0:01:35]} 1-0


[Site "https://www.chess.com"]

[Event "Titled Tuesday Blitz March 28 Late 2023"]
[White "Przybylski, Wojciech"]
[Black "KSho99"]
[WhiteFideId "1117599"]
[WhiteElo "2222"]
[BlackElo "2151"]
[Result "1-0"]
[Round "06"]
[TimeControl "180+2"]
[Date "2023.03.28"]
[WhiteClock "0:01:09"]
[BlackClock "0:00:07"]

1. e4 {[%clk 0:03:00]}  e6 {[%clk 0:02:59]} 2. d4 {[%clk 0:02:59]}  d5 {[%clk 0:02:59]} 3. Nc3 {[%clk 0:02:59]}  Be7 {[%clk 0:02:59]} 4. Qg4 {[%clk 0:02:58]}  Nf6 {[%clk 0:02:16]} 5. Qxg7 {[%clk 0:02:52]}  Rg8 {[%clk 0:02:16]} 6. Qh6 {[%clk 0:02:52]}  dxe4 {[%clk 0:02:09]} 7. Nge2 {[%clk 0:02:48]}  Nc6 {[%clk 0:01:50]} 8. Bf4 {[%clk 0:02:44]}  Rg6 {[%clk 0:01:17]} 9. Qh4 {[%clk 0:02:41]}  b6 {[%clk 0:00:31]} 10. O-O-O {[%clk 0:02:37]}  Ng4 {[%clk 0:00:28]} 11. Qg3 {[%clk 0:02:32]}  Bh4 {[%clk 0:00:28]} 12. Bxc7 {[%clk 0:02:08]}  Bxg3 {[%clk 0:00:28]} 13. Bxd8 {[%clk 0:02:08]}  Nxf2 {[%clk 0:00:21]} 14. hxg3 {[%clk 0:02:01]}  Nxd8 {[%clk 0:00:19]} 15. Nf4 {[%clk 0:01:49]}  Nxh1 {[%clk 0:00:17]} 16. Bb5+ {[%clk 0:01:47]}  Bd7 {[%clk 0:00:16]} 17. Rxh1 {[%clk 0:01:45]}  Rxg3 {[%clk 0:00:15]} 18. Nxe4 {[%clk 0:01:44]}  Bxb5 {[%clk 0:00:14]} 19. Nxg3 {[%clk 0:01:41]}  Nc6 {[%clk 0:00:13]} 20. Rxh7 {[%clk 0:01:35]}  Ke7 {[%clk 0:00:13]} 21. c3 {[%clk 0:01:33]}  Rg8 {[%clk 0:00:13]} 22. Ngh5 {[%clk 0:01:29]}  Bf1 {[%clk 0:00:08]} 23. g3 {[%clk 0:01:28]}  Rg4 {[%clk 0:00:07]} 24. Kd2 {[%clk 0:01:21]}  Na5 {[%clk 0:00:07]} 25. b3 {[%clk 0:01:20]}  Nb7 {[%clk 0:00:07]} 26. Ke1 {[%clk 0:01:17]}  Ba6 {[%clk 0:00:07]} 27. Rh8 {[%clk 0:01:10]}  Nd6 {[%clk 0:00:07]} 28. Ra8 {[%clk 0:01:09]} 1-0


[Site "https://www.chess.com"]

[Event "Titled Tuesday Blitz March 28 Late 2023"]
[White "sissahungrychess"]
[Black "Vargas Rodriguez, Wilver"]
[BlackFideId "3509672"]
[WhiteElo "2383"]
[BlackElo "2238"]
[Result "1-0"]
[Round "06"]
[TimeControl "180+2"]
[Date "2023.03.28"]
[WhiteClock "0:02:06"]
[BlackClock "0:00:32"]

1. c4 {[%clk 0:03:00]}  Nf6 {[%clk 0:02:03]} 2. g3 {[%clk 0:02:59]}  c6 {[%clk 0:02:01]} 3. Bg2 {[%clk 0:03:00]}  d5 {[%clk 0:02:02]} 4. Nf3 {[%clk 0:03:00]}  Bf5 {[%clk 0:02:02]} 5. b3 {[%clk 0:03:01]}  h6 {[%clk 0:02:02]} 6. O-O {[%clk 0:03:00]}  e6 {[%clk 0:02:03]} 7. d3 {[%clk 0:03:00]}  Be7 {[%clk 0:02:03]} 8. Nbd2 {[%clk 0:03:01]}  O-O {[%clk 0:02:02]} 9. Bb2 {[%clk 0:03:01]}  Nbd7 {[%clk 0:02:02]} 10. Re1 {[%clk 0:03:02]}  Bh7 {[%clk 0:02:01]} 11. e4 {[%clk 0:03:00]}  Nc5 {[%clk 0:02:01]} 12. Qe2 {[%clk 0:02:45]}  dxe4 {[%clk 0:01:57]} 13. Nxe4 {[%clk 0:02:39]}  Nxd3 {[%clk 0:01:49]} 14. Nxf6+ {[%clk 0:02:39]}  Bxf6 {[%clk 0:01:50]} 15. Bxf6 {[%clk 0:02:39]}  Qxf6 {[%clk 0:01:49]} 16. Red1 {[%clk 0:02:39]}  Rad8 {[%clk 0:01:46]} 17. Nd2 {[%clk 0:02:34]}  Nb2 {[%clk 0:01:31]} 18. Re1 {[%clk 0:02:29]}  Nd3 {[%clk 0:01:19]} 19. Red1 {[%clk 0:02:29]}  Nb2 {[%clk 0:01:10]} 20. Re1 {[%clk 0:02:25]}  Nd3 {[%clk 0:01:09]} 21. Rf1 {[%clk 0:02:26]}  Qb2 {[%clk 0:01:04]} 22. Rfb1 {[%clk 0:02:18]}  Qd4 {[%clk 0:01:01]} 23. Nf3 {[%clk 0:02:14]}  Qc3 {[%clk 0:00:50]} 24. Rd1 {[%clk 0:02:10]}  Nxf2 {[%clk 0:00:41]} 25. Qxf2 {[%clk 0:02:05]}  Rxd1+ {[%clk 0:00:36]} 26. Rxd1 {[%clk 0:02:06]}  e5 {[%clk 0:00:34]} 27. Qd2 {[%clk 0:02:06]}  Qa5 {[%clk 0:00:32]} 28. Qxa5 {[%clk 0:02:06]} 1-0


[Site "https://www.chess.com"]

[Event "Titled Tuesday Blitz March 28 Late 2023"]
[White "ArturoCaceres"]
[Black "Toma, Katarzyna"]
[BlackFideId "1119907"]
[WhiteElo "2380"]
[BlackElo "2149"]
[Result "1-0"]
[Round "06"]
[TimeControl "180+2"]
[Date "2023.03.28"]
[WhiteClock "0:00:32"]
[BlackClock "0:00:01"]

1. d4 {[%clk 0:02:31]}  d5 {[%clk 0:02:58]} 2. Nc3 {[%clk 0:01:59]}  Nf6 {[%clk 0:02:50]} 3. Bf4 {[%clk 0:01:58]}  c5 {[%clk 0:02:43]} 4. e4 {[%clk 0:01:55]}  cxd4 {[%clk 0:02:33]} 5. Qxd4 {[%clk 0:01:54]}  Nc6 {[%clk 0:02:31]} 6. Bb5 {[%clk 0:01:53]}  dxe4 {[%clk 0:02:13]} 7. Qa4 {[%clk 0:01:49]}  Bd7 {[%clk 0:02:05]} 8. O-O-O {[%clk 0:01:47]}  e6 {[%clk 0:01:28]} 9. f3 {[%clk 0:01:28]}  Bc5 {[%clk 0:00:59]} 10. fxe4 {[%clk 0:01:08]}  Qc8 {[%clk 0:00:32]} 11. Nf3 {[%clk 0:01:03]}  O-O {[%clk 0:00:27]} 12. g4 {[%clk 0:00:56]}  a6 {[%clk 0:00:25]} 13. Qc4 {[%clk 0:00:53]}  Be7 {[%clk 0:00:16]} 14. Bxc6 {[%clk 0:00:52]}  Bxc6 {[%clk 0:00:15]} 15. Ne5 {[%clk 0:00:50]}  Be8 {[%clk 0:00:06]} 16. Qe2 {[%clk 0:00:45]}  b5 {[%clk 0:00:05]} 17. g5 {[%clk 0:00:46]}  Nd7 {[%clk 0:00:04]} 18. Nxd7 {[%clk 0:00:41]}  Bxd7 {[%clk 0:00:04]} 19. Bd6 {[%clk 0:00:42]}  Bxd6 {[%clk 0:00:03]} 20. Rxd6 {[%clk 0:00:43]}  b4 {[%clk 0:00:03]} 21. Rhd1 {[%clk 0:00:32]}  bxc3 {[%clk 0:00:02]} 22. Rxd7 {[%clk 0:00:33]}  cxb2+ {[%clk 0:00:01]} 23. Kb1 {[%clk 0:00:32]}  Rb8 {[%clk 0:00:01]} 24. g6 {[%clk 0:00:32]} 1-0


[Site "https://www.chess.com"]

[Event "Titled Tuesday Blitz March 28 Late 2023"]
[White "De Souza, Cristiano Gomes"]
[Black "Maluco_do_Natal_00"]
[WhiteFideId "2151758"]
[WhiteElo "2068"]
[BlackElo "2031"]
[Result "1/2-1/2"]
[Round "06"]
[TimeControl "180+2"]
[Date "2023.03.28"]
[WhiteClock "0:00:11"]
[BlackClock "0:00:03"]

1. d4 {[%clk 0:02:02]}  d5 {[%clk 0:02:56]} 2. c4 {[%clk 0:01:59]}  c6 {[%clk 0:02:56]} 3. Nf3 {[%clk 0:01:56]}  Nf6 {[%clk 0:02:56]} 4. Nc3 {[%clk 0:01:53]}  dxc4 {[%clk 0:02:56]} 5. a4 {[%clk 0:01:52]}  Bf5 {[%clk 0:02:56]} 6. e3 {[%clk 0:01:51]}  e6 {[%clk 0:02:56]} 7. Bxc4 {[%clk 0:01:50]}  Bb4 {[%clk 0:02:56]} 8. O-O {[%clk 0:01:49]}  Nbd7 {[%clk 0:02:55]} 9. Bd2 {[%clk 0:01:48]}  Qe7 {[%clk 0:02:55]} 10. Ne2 {[%clk 0:01:47]}  O-O {[%clk 0:02:51]} 11. Ng3 {[%clk 0:01:44]}  Bg6 {[%clk 0:02:48]} 12. Bxb4 {[%clk 0:01:40]}  Qxb4 {[%clk 0:02:47]} 13. Qb3 {[%clk 0:01:39]}  Qxb3 {[%clk 0:02:42]} 14. Bxb3 {[%clk 0:01:39]}  c5 {[%clk 0:02:42]} 15. Rfc1 {[%clk 0:01:36]}  Rfc8 {[%clk 0:02:37]} 16. Kf1 {[%clk 0:01:34]}  Bd3+ {[%clk 0:02:04]} 17. Ke1 {[%clk 0:01:31]}  h6 {[%clk 0:01:44]} 18. Kd2 {[%clk 0:01:26]}  Bg6 {[%clk 0:01:41]} 19. Bc2 {[%clk 0:01:16]}  Bxc2 {[%clk 0:01:35]} 20. Rxc2 {[%clk 0:01:11]}  cxd4 {[%clk 0:01:29]} 21. Nxd4 {[%clk 0:01:09]}  Rxc2+ {[%clk 0:01:26]} 22. Kxc2 {[%clk 0:01:08]}  Rc8+ {[%clk 0:01:26]} 23. Kd2 {[%clk 0:01:08]}  Ne5 {[%clk 0:01:17]} 24. b3 {[%clk 0:01:03]}  a6 {[%clk 0:01:08]} 25. Ra2 {[%clk 0:00:58]}  Kf8 {[%clk 0:01:01]} 26. Rc2 {[%clk 0:00:57]}  Rxc2+ {[%clk 0:00:59]} 27. Kxc2 {[%clk 0:00:57]}  Nd5 {[%clk 0:00:58]} 28. Ne4 {[%clk 0:00:52]}  Nd7 {[%clk 0:00:45]} 29. Nc3 {[%clk 0:00:42]}  Nb4+ {[%clk 0:00:39]} 30. Kd2 {[%clk 0:00:41]}  Ke7 {[%clk 0:00:36]} 31. Ne4 {[%clk 0:00:36]}  f5 {[%clk 0:00:30]} 32. Ng3 {[%clk 0:00:34]}  Ne5 {[%clk 0:00:18]} 33. e4 {[%clk 0:00:24]}  f4 {[%clk 0:00:12]} 34. Nge2 {[%clk 0:00:24]}  g5 {[%clk 0:00:11]} 35. Nc3 {[%clk 0:00:22]}  Kd6 {[%clk 0:00:08]} 36. f3 {[%clk 0:00:20]}  Nec6 {[%clk 0:00:07]} 37. Nxc6 {[%clk 0:00:19]}  Nxc6 {[%clk 0:00:07]} 38. Ne2 {[%clk 0:00:19]}  Kc5 {[%clk 0:00:06]} 39. Kc3 {[%clk 0:00:19]}  e5 {[%clk 0:00:06]} 40. Nc1 {[%clk 0:00:18]}  Nb4 {[%clk 0:00:05]} 41. Nd3+ {[%clk 0:00:17]}  Nxd3 {[%clk 0:00:05]} 42. Kxd3 {[%clk 0:00:17]}  Kb4 {[%clk 0:00:05]} 43. Kc2 {[%clk 0:00:17]}  b6 {[%clk 0:00:05]} 44. Kb2 {[%clk 0:00:17]}  b5 {[%clk 0:00:04]} 45. axb5 {[%clk 0:00:17]}  axb5 {[%clk 0:00:04]} 46. g4 {[%clk 0:00:16]}  Kc5 {[%clk 0:00:02]} 47. Kc3 {[%clk 0:00:15]}  b4+ {[%clk 0:00:03]} 48. Kd3 {[%clk 0:00:15]}  Kb5 {[%clk 0:00:01]} 49. h3 {[%clk 0:00:15]}  Kc5 {[%clk 0:00:02]} 50. Kc2 {[%clk 0:00:11]}  Kd4 {[%clk 0:00:02]} 51. Kd2 {[%clk 0:00:12]}  Kc5 {[%clk 0:00:01]} 52. Kd3 {[%clk 0:00:12]}  Kb5 {[%clk 0:00:01]} 53. Kc2 {[%clk 0:00:12]}  Kc5 {[%clk 0:00:02]} 54. Kd3 {[%clk 0:00:11]}  Kb5 {[%clk 0:00:03]} 55. Kc2 {[%clk 0:00:11]}  Kc5 {[%clk 0:00:03]} 56. Kd3 {[%clk 0:00:11]} 1/2-1/2


[Site "https://www.chess.com"]

[Event "Titled Tuesday Blitz March 28 Late 2023"]
[White "Escanor89"]
[Black "Stanisz, Patryk"]
[BlackFideId "1123106"]
[WhiteElo "2486"]
[BlackElo "2069"]
[Result "1-0"]
[Round "06"]
[TimeControl "180+2"]
[Date "2023.03.28"]
[WhiteClock "0:00:35"]
[BlackClock "0:00:06"]

1. e4 {[%clk 0:03:00]}  c5 {[%clk 0:02:59]} 2. Nf3 {[%clk 0:03:00]}  Nc6 {[%clk 0:02:58]} 3. Bb5 {[%clk 0:02:59]}  g6 {[%clk 0:02:58]} 4. Bxc6 {[%clk 0:02:59]}  dxc6 {[%clk 0:02:58]} 5. d3 {[%clk 0:02:58]}  Bg7 {[%clk 0:02:59]} 6. h3 {[%clk 0:02:58]}  Nf6 {[%clk 0:02:58]} 7. O-O {[%clk 0:02:55]}  Nd7 {[%clk 0:02:58]} 8. Nc3 {[%clk 0:02:54]}  e5 {[%clk 0:02:59]} 9. Be3 {[%clk 0:02:53]}  Qe7 {[%clk 0:02:59]} 10. Qd2 {[%clk 0:02:51]}  h6 {[%clk 0:02:59]} 11. a4 {[%clk 0:02:48]}  a5 {[%clk 0:02:57]} 12. Nh2 {[%clk 0:02:44]}  Nf8 {[%clk 0:02:57]} 13. f4 {[%clk 0:02:30]}  exf4 {[%clk 0:02:58]} 14. Bxf4 {[%clk 0:02:30]}  Ne6 {[%clk 0:02:58]} 15. Be3 {[%clk 0:02:28]}  Nd4 {[%clk 0:02:56]} 16. Rae1 {[%clk 0:02:24]}  Be6 {[%clk 0:02:50]} 17. b3 {[%clk 0:02:21]}  b6 {[%clk 0:02:44]} 18. Nd1 {[%clk 0:02:20]}  O-O {[%clk 0:02:41]} 19. Nf2 {[%clk 0:01:58]}  Kh7 {[%clk 0:02:38]} 20. e5 {[%clk 0:01:50]}  h5 {[%clk 0:02:28]} 21. Bxd4 {[%clk 0:01:40]}  cxd4 {[%clk 0:02:28]} 22. Nf3 {[%clk 0:01:41]}  c5 {[%clk 0:02:22]} 23. Ne4 {[%clk 0:01:40]}  Kg8 {[%clk 0:02:19]} 24. Nfg5 {[%clk 0:01:37]}  Bxe5 {[%clk 0:02:03]} 25. Nxe6 {[%clk 0:01:30]}  Qxe6 {[%clk 0:01:50]} 26. Nf6+ {[%clk 0:01:11]}  Qxf6 {[%clk 0:00:55]} 27. Rxf6 {[%clk 0:01:07]}  Bxf6 {[%clk 0:00:56]} 28. Qf4 {[%clk 0:01:03]}  Kg7 {[%clk 0:00:53]} 29. Rf1 {[%clk 0:00:52]}  Bd8 {[%clk 0:00:42]} 30. Qe5+ {[%clk 0:00:49]}  Kg8 {[%clk 0:00:40]} 31. Qd6 {[%clk 0:00:44]}  Ra7 {[%clk 0:00:26]} 32. Re1 {[%clk 0:00:43]}  Bh4 {[%clk 0:00:20]} 33. Re4 {[%clk 0:00:42]}  Bd8 {[%clk 0:00:18]} 34. g4 {[%clk 0:00:41]}  Bc7 {[%clk 0:00:16]} 35. Qc6 {[%clk 0:00:39]}  hxg4 {[%clk 0:00:10]} 36. hxg4 {[%clk 0:00:39]}  Kg7 {[%clk 0:00:08]} 37. Kg2 {[%clk 0:00:39]}  Rh8 {[%clk 0:00:07]} 38. Re7 {[%clk 0:00:36]}  Rh2+ {[%clk 0:00:06]} 39. Kg1 {[%clk 0:00:35]} 1-0


[Site "https://www.chess.com"]

[Event "Titled Tuesday Blitz March 28 Late 2023"]
[White "Barria Santos, Jose Guilherme"]
[Black "Bolanos, Fernando"]
[WhiteFideId "1939300"]
[BlackFideId "3304094"]
[WhiteElo "2301"]
[BlackElo "2166"]
[Result "0-1"]
[Round "06"]
[TimeControl "180+2"]
[Date "2023.03.28"]
[WhiteClock "0:00:02"]
[BlackClock "0:00:04"]

1. e4 {[%clk 0:03:00]}  c5 {[%clk 0:02:58]} 2. Nf3 {[%clk 0:03:00]}  d6 {[%clk 0:02:50]} 3. d4 {[%clk 0:03:00]}  cxd4 {[%clk 0:02:51]} 4. Nxd4 {[%clk 0:03:01]}  Nf6 {[%clk 0:02:51]} 5. Nc3 {[%clk 0:03:02]}  Nc6 {[%clk 0:02:51]} 6. Bg5 {[%clk 0:03:01]}  e6 {[%clk 0:02:51]} 7. Qd2 {[%clk 0:03:01]}  a6 {[%clk 0:02:52]} 8. O-O-O {[%clk 0:03:01]}  Bd7 {[%clk 0:02:52]} 9. f3 {[%clk 0:02:53]}  Be7 {[%clk 0:02:46]} 10. h4 {[%clk 0:02:46]}  b5 {[%clk 0:02:45]} 11. g4 {[%clk 0:02:37]}  Rc8 {[%clk 0:02:12]} 12. Bxb5 {[%clk 0:02:27]}  axb5 {[%clk 0:01:29]} 13. Ndxb5 {[%clk 0:02:28]}  O-O {[%clk 0:01:17]} 14. Nxd6 {[%clk 0:02:23]}  Rb8 {[%clk 0:01:12]} 15. Nc4 {[%clk 0:01:33]}  Na5 {[%clk 0:00:24]} 16. Nxa5 {[%clk 0:00:57]}  Qxa5 {[%clk 0:00:24]} 17. e5 {[%clk 0:00:45]}  Qxe5 {[%clk 0:00:18]} 18. Rhe1 {[%clk 0:00:45]}  Qa5 {[%clk 0:00:16]} 19. Kb1 {[%clk 0:00:38]}  Rfc8 {[%clk 0:00:15]} 20. Ne4 {[%clk 0:00:28]}  Qb6 {[%clk 0:00:07]} 21. b3 {[%clk 0:00:25]}  Nxe4 {[%clk 0:00:07]} 22. fxe4 {[%clk 0:00:23]}  Bxg5 {[%clk 0:00:06]} 23. hxg5 {[%clk 0:00:20]}  Bc6 {[%clk 0:00:03]} 24. Qf4 {[%clk 0:00:18]}  Ra8 {[%clk 0:00:03]} 25. Rf1 {[%clk 0:00:17]}  Ra7 {[%clk 0:00:01]} 26. Rd6 {[%clk 0:00:17]}  Qa5 {[%clk 0:00:01]} 27. a4 {[%clk 0:00:05]}  Bxa4 {[%clk 0:00:02]} 28. Qd2 {[%clk 0:00:04]}  Qxd2 {[%clk 0:00:02]} 29. Rxd2 {[%clk 0:00:04]}  Bc6 {[%clk 0:00:02]} 30. Rd4 {[%clk 0:00:02]}  Kf8 {[%clk 0:00:03]} 31. Rfd1 {[%clk 0:00:02]}  Ke7 {[%clk 0:00:03]} 32. e5 {[%clk 0:00:02]}  Bd5 {[%clk 0:00:03]} 33. c4 {[%clk 0:00:02]}  Bf3 {[%clk 0:00:04]} 0-1


[Site "https://www.chess.com"]

[Event "Titled Tuesday Blitz March 28 Late 2023"]
[White "Osmonbekov, Talaibek"]
[Black "Sanchez, Robert"]
[WhiteFideId "2017253"]
[BlackFideId "2034360"]
[WhiteElo "2135"]
[BlackElo "2084"]
[Result "1-0"]
[Round "06"]
[TimeControl "180+2"]
[Date "2023.03.28"]
[WhiteClock "0:01:24"]
[BlackClock "0:02:08"]

1. d4 {[%clk 0:03:00]}  Nf6 {[%clk 0:02:59]} 2. Bf4 {[%clk 0:02:59]}  e6 {[%clk 0:03:00]} 3. Nc3 {[%clk 0:02:59]}  d5 {[%clk 0:03:00]} 4. e3 {[%clk 0:02:59]}  Bb4 {[%clk 0:03:00]} 5. Bd3 {[%clk 0:02:58]}  c5 {[%clk 0:02:59]} 6. dxc5 {[%clk 0:02:56]}  Bxc5 {[%clk 0:02:57]} 7. Nb5 {[%clk 0:02:48]}  Na6 {[%clk 0:02:55]} 8. c3 {[%clk 0:02:43]}  O-O {[%clk 0:02:54]} 9. Nf3 {[%clk 0:02:38]}  Qe7 {[%clk 0:02:41]} 10. b4 {[%clk 0:02:35]}  Bb6 {[%clk 0:02:37]} 11. Bd6 {[%clk 0:02:33]}  Qd8 {[%clk 0:02:37]} 12. Bxf8 {[%clk 0:02:33]}  Qxf8 {[%clk 0:02:38]} 13. O-O {[%clk 0:02:32]}  Bd7 {[%clk 0:02:37]} 14. a4 {[%clk 0:02:31]}  Nc7 {[%clk 0:02:36]} 15. Nbd4 {[%clk 0:02:22]}  a6 {[%clk 0:02:33]} 16. Ne5 {[%clk 0:02:18]}  Bc8 {[%clk 0:02:34]} 17. a5 {[%clk 0:02:11]}  Ba7 {[%clk 0:02:34]} 18. f4 {[%clk 0:02:11]}  Nd7 {[%clk 0:02:31]} 19. Qh5 {[%clk 0:02:03]}  g6 {[%clk 0:02:29]} 20. Qh4 {[%clk 0:01:58]}  Nxe5 {[%clk 0:02:26]} 21. fxe5 {[%clk 0:01:58]}  Bd7 {[%clk 0:02:27]} 22. Rf3 {[%clk 0:01:54]}  Qd8 {[%clk 0:02:16]} 23. Qh3 {[%clk 0:01:36]}  Be8 {[%clk 0:02:10]} 24. Qh6 {[%clk 0:01:25]}  Qe7 {[%clk 0:02:08]} 25. Rh3 {[%clk 0:01:24]} 1-0


[Site "https://www.chess.com"]